bitfinex-derivatives/quotes_ETHF0:USTF0_20260203
["timestamp","ask_amount","ask_price","bid_price","bid_amount"]
[1770078892668,2.29279554,2343.2,2341.8,2.5294146]
[1770078892870,2.29279554,2343.2,2342.2,2.33317342]
[1770078893066,2.71856,2343.5,2342.2,2.33317342]
[1770078893266,2.29279554,2343.4,2342.2,2.33317342]
[1770078896970,2.50636554,2343.4,2342.2,2.33317342]
[1770078897271,2.29279554,2343.2,2342.2,2.33317342]
[1770078897482,2.50637554,2343.2,2342.2,2.33317342]
[1770078898672,0.21359,2343.1,2342.0,2.53607129]
[1770078898875,2.50639554,2343.0,2341.9,2.33317342]
[1770078899076,2.29279554,2342.8,2341.9,2.33317342]
[1770078900370,2.29279554,2342.4,2341.5,2.53607129]
[1770078900577,2.29279554,2342.2,2341.0,4.86924471]
[1770078900775,2.29279554,2341.8,2340.7,4.86924471]
[1770078900982,2.29279554,2341.8,2340.8,2.33317342]
[1770078901484,2.50652554,2341.6,2340.5,7.85824471]
[1770078901684,2.29279554,2341.4,2340.5,0.00313056]
[1770078902081,2.29279554,2341.4,2340.5,2.33630398]
[1770078902386,0.00327976,2341.6,2340.5,2.33630398]
[1770078902685,2.5098053,2341.6,2340.5,2.33630398]
[1770078905587,2.5098053,2341.6,2340.5,0.00313056]
[1770078905779,2.29279554,2341.4,2340.0,2.33317342]
[1770078905985,2.29279554,2341.1,2340.0,2.33317342]
[1770078906181,2.50656554,2341.1,2340.0,2.33317342]
[1770078906387,2.29279554,2340.8,2339.7,2.33317342]
[1770078906783,2.29279554,2340.8,2339.7,2.33733448]
[1770078906989,2.50660554,2340.8,2339.7,2.33733448]
[1770078907183,2.505,2341.1,2339.7,2.33733448]
[1770078907184,2.29279554,2340.6,2339.7,0.00416106]
[1770078907991,0.21381,2340.7,2339.7,2.33733448]
[1770078908389,2.50660554,2340.7,2339.7,2.33733448]
[1770078910885,2.29279554,2341.0,2339.7,2.33733448]
[1770078911084,2.50657554,2341.0,2339.7,2.33733448]
[1770078914596,0.21378,2341.0,2339.7,2.33733448]
[1770078915694,2.50657554,2341.0,2339.7,2.33733448]
[1770078916298,0.21378,2341.0,2339.7,2.33733448]
[1770078916694,2.50657554,2341.0,2339.7,2.33733448]
[1770078920102,2.45753911,2340.8,2339.7,2.33733448]
[1770078920600,2.67133911,2340.8,2339.7,2.33733448]
[1770078920994,2.99,2341.3,2339.7,2.33733448]
[1770078920995,2.67135911,2340.6,2339.7,2.33733448]
[1770078921401,2.67137911,2340.4,2339.7,0.00416106]
[1770078928709,2.67137911,2340.4,2339.3,2.35628903]
[1770078929207,2.67137911,2340.4,2339.3,4.88816198]
[1770078929510,2.45753911,2340.2,2339.3,0.00398415]
[1770078929802,2.45753911,2340.0,2339.3,2.36027318]
[1770078930010,0.21384,2340.4,2339.3,2.36027318]
[1770078930605,2.45753911,2340.8,2339.7,2.35628903]
[1770078931013,2.45753911,2341.1,2339.7,2.35628903]
[1770078931207,2.45753911,2341.1,2339.9,2.35628903]
[1770078932412,8.07325027,2341.3,2340.0,2.35628903]
[1770078932612,8.07325027,2341.3,2340.2,2.35628903]
[1770078932613,5.55376,2341.3,2340.2,2.35628903]
[1770078932808,2.992,2341.4,2340.3,2.35628903]
[1770078933012,5.44953911,2341.4,2340.6,2.35628903]
[1770078933913,2.992,2341.4,2340.6,2.35628903]
[1770078935808,2.45753911,2341.3,2340.4,4.88816198]
[1770078936010,2.45753911,2341.3,2340.4,2.35628903]
[1770078936216,2.992,2341.4,2340.4,2.35628903]
[1770078939619,5.44953911,2341.4,2340.5,2.35628903]
[1770078941414,2.45753911,2341.3,2340.5,2.35628903]
[1770078941715,2.45753911,2341.1,2340.2,2.53187295]
[1770078941911,2.45753911,2341.1,2340.1,2.53187295]
[1770078942112,2.45753911,2340.9,2340.0,4.88816198]
[1770078942316,2.45753911,2340.9,2339.8,5.07879328]
[1770078942317,2.45753911,2340.9,2339.8,4.88816198]
[1770078942513,2.45753911,2340.7,2339.7,2.53187295]
[1770078942820,2.67134911,2340.7,2339.6,2.53187295]
[1770078943319,2.45753911,2340.5,2339.5,4.88816198]
[1770078943723,4.97702938,2341.0,2339.7,2.35628903]
[1770078943921,2.45753911,2340.9,2339.7,2.35628903]
[1770078944122,2.45753911,2340.7,2339.7,2.35628903]
[1770078945222,4.97702938,2341.0,2339.7,2.35628903]
[1770078945517,44.24201457,2341.1,2340.0,2.35628903]
[1770078945518,6.397,2341.1,2340.0,2.35628903]
[1770078946123,8.85453911,2341.1,2340.0,2.35628903]
[1770078946627,2.45753911,2341.0,2340.0,2.35628903]
[1770078946919,2.45753911,2341.0,2339.9,2.35628903]
[1770078947119,2.45753911,2340.8,2339.8,2.17507622]
[1770078947319,0.21383,2340.5,2339.6,2.35628903]
[1770078947516,2.45753911,2340.7,2339.6,2.35628903]
[1770078947925,2.67134911,2340.7,2339.6,2.35628903]
[1770078948921,2.04707642,2339.8,2338.7,3.82708478]
[1770078949118,0.21397,2339.0,2338.1,0.22196456]
[1770078949324,0.21397,2339.0,2338.2,4.13026184]
[1770078949325,0.21399,2338.8,2338.2,4.13026184]
[1770078949525,2.507,2339.0,2338.3,2.52234619]
[1770078949725,3.73294666,2338.9,2338.3,2.52234619]
[1770078949920,0.00495422,2338.9,2338.5,2.52234619]
[1770078950124,0.00495422,2338.9,2338.4,8.40386184]
[1770078950428,0.00495422,2338.9,2338.4,6.65270007]
[1770078950827,0.00495422,2338.9,2338.3,0.00522922]
[1770078951027,0.00495422,2338.9,2338.3,4.13549106]
[1770078951731,0.04574671,2338.9,2338.1,0.22196456]
[1770078951930,0.04574671,2338.9,2338.1,4.3522264]
[1770078952324,0.04574671,2338.9,2338.1,0.22196456]
[1770078952524,0.04079249,2338.8,2338.1,0.22196456]
[1770078952728,0.04079249,2338.8,2338.1,0.22680871]
[1770078952928,6.401,2338.7,2338.1,0.22680871]
[1770078953120,6.44179249,2338.7,2338.1,0.22680871]
[1770078954025,6.401,2338.7,2338.2,2.52653828]
[1770078954225,0.00495422,2338.9,2338.5,2.52653828]
[1770078954727,0.00495422,2338.9,2338.6,4.2736]
[1770078955026,0.00495422,2338.9,2338.6,4.27712012]
[1770078955331,6.61494,2339.3,2338.6,6.8036584]
[1770078955532,6.61494,2339.3,2338.6,6.66032024]
[1770078956323,0.00444424,2339.3,2338.8,2.52653828]
[1770078956522,3.20591,2339.7,2339.0,2.52653828]
[1770078957530,3.20980182,2339.7,2339.1,4.13026184]
[1770078957730,3.20980182,2339.7,2338.7,6.65680012]
[1770078958029,3.20980182,2339.7,2338.8,2.52653828]
[1770078958430,3.20980182,2339.7,2338.9,4.13026184]
[1770078959532,3.20980182,2339.7,2339.0,4.2736]
[1770078959831,3.20980182,2339.7,2338.9,4.13026184]
[1770078960132,3.20980182,2339.7,2339.0,2.52653828]
[1770078961226,2.99589182,2339.7,2339.4,2.52653828]
[1770078961428,1.55250823,2339.7,2339.1,6.80013828]
[1770078961631,1.55250823,2339.7,2339.2,6.65680012]
[1770078961824,1.55250823,2339.7,2339.3,2.52653828]
[1770078962132,1.55250823,2339.7,2339.3,6.80013828]
[1770078962627,0.00389182,2339.7,2339.6,2.52653828]
[1770078962831,0.21383,2340.5,2339.6,2.52653828]
[1770078963031,2.994,2340.6,2339.9,2.52653828]
[1770078963535,2.994,2340.6,2340.0,4.13026184]
[1770078963735,2.994,2340.6,2339.8,2.52653828]
[1770078963736,2.99730894,2340.6,2339.8,2.52653828]
[1770078963932,2.99730894,2340.6,2340.1,2.52653828]
[1770078964136,2.99730894,2340.6,2340.3,2.52653828]
[1770078964331,2.99730894,2340.6,2340.3,0.00380868]
[1770078964537,2.99730894,2340.6,2340.0,2.52653828]
[1770078964836,2.99730894,2340.6,2340.1,10.93040012]
[1770078965035,2.99730894,2340.6,2340.1,2.52653828]
[1770078965338,2.99730894,2340.6,2340.2,6.65680012]
[1770078965537,2.99730894,2340.6,2340.2,6.65999671]
[1770078967435,2.99730894,2340.6,2340.2,10.93359671]
[1770078970336,2.99730894,2340.6,2340.3,2.52653828]
[1770078970636,2.99730894,2340.6,2340.4,2.52653828]
[1770078970839,2.99730894,2340.6,2340.3,4.2736]
[1770078972136,2.99730894,2340.6,2340.4,4.2736]
[1770078972340,2.99730894,2340.6,2340.3,4.2736]
[1770078972638,0.00330894,2340.6,2339.9,2.52653828]
[1770078973140,0.21385,2340.3,2338.4,2.52653828]
[1770078973342,3.72439401,2340.2,2339.4,2.52653828]
[1770078973635,0.21389,2339.9,2339.4,0.00415354]
[1770078973839,0.21389,2339.9,2339.4,2.01198065]
[1770078974137,6.471,2340.1,2339.7,2.52653828]
[1770078974733,6.471,2340.1,2339.7,6.80013828]
[1770078974933,6.471,2340.1,2339.8,2.52653828]
[1770078975138,3.78914449,2340.0,2339.8,2.52653828]
[1770078975337,6.471,2340.1,2340.0,2.52653828]
[1770078975539,0.21384,2340.4,2340.0,2.52653828]
[1770078975842,3.78984541,2340.3,2340.1,2.52653828]
[1770078976040,3.78984541,2340.2,2340.1,4.2736]
[1770078976340,3.78984541,2340.3,2340.1,4.2736]
[1770078976837,3.78984541,2340.3,2340.1,3.84524]
[1770078977035,3.78984541,2340.3,2340.2,3.84524]
[1770078977240,3.741939,2340.3,2339.8,3.84524]
[1770078977440,3.741939,2340.3,2339.5,2.00782711]
[1770078977741,3.741939,2340.3,2339.8,3.84524]
[1770078978038,3.741939,2340.3,2339.9,2.51649308]
[1770078978240,3.741939,2340.3,2340.2,2.51649308]
[1770078978440,6.48030894,2340.6,2340.3,2.51649308]
[1770078979038,6.48030894,2340.6,2339.5,2.51649308]
[1770078979340,6.48030894,2340.6,2340.1,2.50860298]
[1770078979839,6.48030894,2340.6,2340.4,2.50860298]
[1770078980140,0.00330894,2340.6,2340.4,2.50860298]
[1770078980341,0.00330894,2340.6,2340.4,6.35384298]
[1770078981141,0.00330894,2340.6,2340.5,3.84524]
[1770078981543,0.00330894,2340.6,2339.5,2.52493633]
[1770078981742,0.00330894,2340.6,2339.8,5.82730478]
[1770078982138,0.00330894,2340.6,2339.9,7.83513189]
[1770078982332,0.00330894,2340.6,2339.4,0.00415354]
[1770078982333,0.00330894,2340.6,2340.1,2.52493633]
[1770078982538,6.526,2340.9,2340.5,2.52328186]
[1770078982936,5.304,2340.9,2340.7,5.82565031]
[1770078983139,5.304,2340.9,2340.7,2.52328186]
[1770078983438,5.304,2340.9,2340.8,3.30236845]
[1770078983639,5.30882671,2340.9,2340.8,3.30236845]
[1770078985145,5.30882671,2340.9,2340.8,5.78518409]
[1770078985747,0.00482671,2340.9,2340.8,7.7930112]
[1770078986145,0.00482671,2340.9,2340.8,5.31019556]
[1770078986846,5.07279594,2341.4,2341.0,2.47576353]
[1770078986847,2.53663584,2341.4,2341.0,2.47576353]
[1770078987044,0.21372,2341.7,2341.0,2.47576353]
[1770078987349,2.50618383,2341.7,2341.1,2.00782711]
[1770078987645,0.21372,2341.7,2341.2,2.47576353]
[1770078987845,0.21795123,2341.7,2341.2,2.47898674]
[1770078988447,0.00423123,2341.7,2341.3,4.48359064]
[1770078988850,6.614,2341.8,2341.4,2.47576353]
[1770078989044,6.85167,2342.2,2341.4,2.47576353]
[1770078989348,6.85167,2342.2,2341.6,2.47576353]
[1770078989349,3.69470921,2342.1,2341.6,2.47576353]
[1770078989646,6.85167,2342.2,2341.6,2.47576353]
[1770078989647,3.69470921,2342.0,2341.6,2.47576353]
[1770078989842,3.69470921,2341.9,2341.8,2.47576353]
[1770078990048,3.69470921,2341.9,2341.6,2.47576353]
[1770078990845,0.00440081,2342.0,2341.6,2.47576353]
[1770078991044,0.00440081,2342.0,2341.7,4.48359064]
[1770078991245,0.00440081,2342.0,2341.8,2.47576353]
[1770078991443,2.992,2342.4,2341.8,2.47576353]
[1770078991646,2.29246383,2342.6,2341.9,4.48359064]
[1770078991952,2.29246383,2342.6,2341.9,2.47576353]
[1770078992147,0.21363,2342.7,2341.9,2.47576353]
[1770078992349,6.639,2342.9,2342.1,2.47576353]
[1770078992549,0.00358808,2342.9,2342.3,2.47576353]
[1770078993251,0.00358808,2342.9,2342.5,2.47576353]
[1770078993651,0.00358808,2342.9,2342.6,4.48359064]
[1770078993849,0.00358808,2342.9,2341.7,2.47576353]
[1770078994154,2.29605191,2342.9,2341.7,2.47576353]
[1770078996449,2.50966191,2342.9,2341.8,4.48359064]
[1770078996655,2.50966191,2342.9,2341.8,2.47576353]
[1770078997251,2.29246383,2342.5,2341.9,1.55927711]
[1770078997460,6.10446383,2342.6,2341.9,1.55927711]
[1770078997646,6.10446383,2342.6,2341.7,2.47576353]
[1770078997853,6.10446383,2342.6,2341.8,1.55927711]
[1770078998454,6.10446383,2342.6,2341.7,2.47576353]
[1770078998755,6.10446383,2342.6,2341.8,1.55927711]
[1770079000454,2.29246383,2342.5,2341.8,1.55927711]
[1770079000754,2.29246383,2342.3,2341.2,0.00322321]
[1770079000949,2.29246383,2342.3,2341.2,2.47898674]
[1770079001747,0.21366,2342.4,2341.4,2.47576353]
[1770079002155,3.812,2342.6,2341.6,2.47576353]
[1770079003760,2.29246383,2342.7,2341.7,1.50988785]
[1770079004258,2.50609383,2342.7,2341.7,1.50988785]
[1770079004455,2.29246383,2342.5,2341.7,1.50988785]
[1770079005358,2.50611383,2342.5,2341.7,1.50988785]
[1770079008059,2.50611383,2342.5,2341.7,3.98565138]
[1770079008358,0.21365,2342.5,2341.8,2.47576353]
[1770079010262,2.29246383,2342.8,2341.9,1.50988785]
[1770079010458,0.21719808,2342.9,2342.0,2.31436005]
[1770079010663,2.5649329,2342.9,2342.0,2.31436005]
[1770079013165,7.63772884,2342.9,2342.0,2.31436005]
[1770079015163,5.07279594,2342.8,2342.0,2.31436005]
[1770079015563,5.07279594,2342.8,2342.1,1.50988785]
[1770079016162,5.07279594,2342.7,2342.1,1.50988785]
[1770079016868,38.18340407,2342.6,2342.1,3.8242479]
[1770079018070,38.18340407,2342.5,2342.2,2.31436005]
[1770079018569,38.18340407,2342.5,2342.3,3.8242479]
[1770079018770,36.67351622,2342.5,2341.2,7.00458208]
[1770079019071,36.67351622,2342.5,2341.3,2.31436005]
[1770079019667,0.00358808,2342.9,2341.6,2.31436005]
[1770079020470,0.00358808,2342.9,2341.9,4.01128887]
[1770079020669,0.00358808,2342.9,2342.1,3.79759887]
[1770079020877,2.52436762,2343.7,2342.5,4.01123887]
[1770079021171,2.73784762,2344.3,2342.6,4.01122887]
[1770079021363,2.73784762,2344.3,2342.8,0.00118324]
[1770079021771,2.74092934,2344.3,2342.8,0.00118324]
[1770079022164,2.737276,2344.1,2342.8,0.00118324]
[1770079022475,2.737296,2343.9,2342.6,0.00118324]
[1770079023570,2.51825698,2343.7,2342.6,0.00118324]
[1770079023874,2.51825698,2343.5,2342.4,0.01222129]
[1770079024374,0.21359,2343.1,2342.0,0.01222129]
[1770079024573,2.51825698,2342.8,2341.7,0.01222129]
[1770079027176,2.52436762,2343.4,2341.7,0.01222129]
[1770079028073,2.73792762,2343.4,2341.7,0.01222129]
[1770079028576,10.56679594,2343.6,2341.7,0.01222129]
[1770079028577,2.73642944,2343.1,2341.7,0.01222129]
[1770079028777,0.2136,2343.0,2341.7,0.01222129]
[1770079029072,2.52282944,2342.9,2341.7,0.01222129]
[1770079029776,2.52282944,2342.9,2341.8,0.00764696]
[1770079033283,2.52282944,2342.9,2341.8,0.21371]
[1770079033979,2.52436762,2343.7,2341.8,3.79759887]
[1770079034175,2.52436762,2343.7,2342.6,0.21363]
[1770079034577,2.52436762,2343.7,2342.4,3.79759887]
[1770079034781,2.52436762,2343.7,2342.2,3.74]
[1770079034971,2.73790762,2343.7,2342.2,6.49924919]
[1770079035377,2.73790762,2343.7,2342.4,0.05898401]
[1770079036471,2.73790762,2343.7,2342.3,2.75923919]
[1770079036674,2.73790762,2343.7,2342.3,0.21366]
[1770079037377,2.73790762,2343.7,2342.4,0.11036882]
[1770079037578,2.52436762,2343.7,2342.5,0.11036882]
[1770079039585,2.52436762,2343.7,2342.6,0.11074599]
[1770079039782,2.52436762,2343.7,2342.9,0.11074599]
[1770079040083,2.46899463,2344.2,2343.1,0.10856375]
[1770079040279,2.46899463,2344.2,2343.3,0.10856375]
[1770079040484,2.46899463,2344.2,2343.4,0.32212375]
[1770079040689,0.00308172,2344.3,2343.5,0.10856375]
[1770079041385,0.00308172,2344.3,2343.6,0.10856375]
[1770079043280,2.46162529,2344.8,2343.8,0.12349541]
[1770079043482,2.46162529,2344.8,2343.9,0.10707306]
[1770079044188,2.4670099,2344.8,2343.9,0.10707306]
[1770079044984,2.4670099,2344.8,2343.8,3.744]
[1770079045187,2.4670099,2344.8,2343.7,0.21353]
[1770079045887,2.4670099,2344.8,2343.7,0.31981741]
[1770079046190,2.4670099,2344.8,2343.7,0.21353]
[1770079046886,2.4670099,2344.8,2343.8,0.10628741]
[1770079048289,2.4670099,2344.8,2343.4,2.988]
[1770079048588,2.4670099,2344.8,2343.6,0.11020542]
[1770079049582,2.4670099,2344.8,2343.7,0.1206094]
[1770079050085,2.4670099,2344.8,2343.4,2.988]
[1770079050489,2.4670099,2344.8,2343.4,3.1086094]
[1770079051387,2.4670099,2344.8,2343.3,0.21357]
[1770079051388,2.43593764,2344.6,2343.3,0.21357]
[1770079052086,2.43593764,2344.6,2343.3,0.41254878]
[1770079054391,2.43593764,2344.6,2343.4,0.18229521]
[1770079055485,2.43593764,2344.6,2343.5,0.18702157]
[1770079055792,2.43593764,2344.6,2343.6,0.18702157]
[1770079055986,0.00538461,2344.8,2343.8,0.18702157]
[1770079056287,2.43593764,2344.9,2343.8,0.18702157]
[1770079057091,2.44027252,2344.9,2343.8,0.18702157]
[1770079060090,2.44027252,2344.9,2343.7,0.21353]
[1770079060295,2.43593764,2344.7,2343.5,0.19272308]
[1770079062801,2.43593764,2344.7,2343.5,0.40627308]
[1770079063009,2.43593764,2344.7,2343.7,0.19157593]
[1770079063306,2.43593764,2344.7,2343.8,0.19157593]
[1770079064100,2.43593764,2344.7,2343.9,0.16776449]
[1770079067412,0.00433488,2344.9,2344.3,0.16976922]
[1770079068415,0.00433488,2344.9,2344.3,2.92971219]
[1770079069415,2.44027252,2344.9,2344.3,2.75994297]
[1770079070215,0.00433488,2344.9,2344.4,0.21571893]
[1770079071916,2.41415685,2344.9,2344.3,2.75994297]
[1770079073019,0.00433488,2344.9,2344.4,0.22783221]
[1770079073714,2.4280911,2344.9,2344.3,2.75994297]
[1770079074018,2.4280911,2344.9,2344.3,2.54646297]
[1770079077320,2.4280911,2344.9,2344.0,2.75997297]
[1770079077618,2.4280911,2344.9,2344.0,0.21351]
[1770079080219,2.59409804,2344.7,2343.8,3.79759887]
[1770079080417,2.1346725,2344.2,2343.1,2.43087041]
[1770079080617,4.67510775,2344.2,2343.1,2.43087041]
[1770079081015,2.1346725,2344.1,2343.1,2.43087041]
[1770079081535,2.13028742,2343.9,2342.9,0.00330524]
[1770079084122,2.13028742,2343.9,2342.9,2.43417565]
[1770079087422,2.25787976,2344.2,2342.9,2.43417565]
[1770079092231,2.54043525,2344.4,2343.1,2.43087041]
[1770079092428,2.02465776,2344.4,2343.1,2.43087041]
[1770079092931,2.02465776,2344.3,2343.1,2.43087041]
[1770079094437,2.25280634,2343.7,2342.6,2.987]
[1770079094735,2.0359611,2343.4,2342.6,2.987]
[1770079095532,2.0359611,2343.4,2342.6,2.99162786]
[1770079095938,2.2495311,2343.4,2342.6,0.00462786]
[1770079096135,2.2495311,2343.4,2342.1,11.64819511]
[1770079096831,2.24550773,2343.2,2342.1,2.43087041]
[1770079097136,2.03191773,2342.9,2342.2,2.43087041]
[1770079097730,2.54043525,2343.9,2342.2,2.43087041]
[1770079097935,2.02427667,2344.1,2342.8,2.43087041]
[1770079098238,2.02427667,2344.1,2343.1,2.43087041]
[1770079098834,2.02427667,2344.1,2342.6,2.43087041]
[1770079099036,2.02918784,2344.1,2342.6,2.43087041]
[1770079106340,2.35635341,2343.8,2342.6,2.43087041]
[1770079106637,2.56989341,2343.6,2342.4,2.36055643]
[1770079106838,2.35635341,2343.5,2342.2,2.36055643]
[1770079107740,4.89116063,2343.5,2342.2,2.36055643]
[1770079107938,2.36104901,2343.3,2342.2,2.36055643]
[1770079108133,2.36104901,2343.2,2342.2,2.36055643]
[1770079108333,2.36104901,2343.0,2342.1,0.00544986]
[1770079108743,2.53480722,2343.2,2342.1,2.36600629]
[1770079108943,2.53480722,2343.3,2342.3,2.36055643]
[1770079109243,38.00840183,2343.4,2342.3,2.36055643]
[1770079109244,2.53480722,2343.4,2342.3,2.36055643]
[1770079109439,2.53480722,2343.4,2342.5,2.36055643]
[1770079109742,4.87750548,2343.8,2342.5,2.57419643]
[1770079110142,2.53480722,2343.9,2342.5,2.57419643]
[1770079110344,2.53480722,2343.9,2342.6,6.18758148]
[1770079110643,2.53480722,2343.9,2342.7,2.36055643]
[1770079112736,2.30913151,2343.8,2342.7,2.36055643]
[1770079113141,2.30913151,2343.7,2342.7,2.36055643]
[1770079119448,2.19578214,2343.5,2342.7,2.36055643]
[1770079119649,2.19578214,2343.5,2342.4,2.36055643]
[1770079119845,2.53480722,2343.8,2342.8,2.36055643]
[1770079121945,2.14524446,2343.8,2342.8,2.36055643]
[1770079123550,2.21067307,2343.7,2342.6,2.36055643]
[1770079126650,2.53480722,2343.9,2342.7,2.57417643]
[1770079128157,2.53480722,2343.9,2342.8,2.36055643]
[1770079129258,4.74628585,2343.9,2342.8,2.36055643]
[1770079129458,4.73422346,2343.8,2342.8,2.36055643]
[1770079130856,2.19954633,2343.7,2342.6,4.56805895]
[1770079131061,0.21363,2342.7,2341.6,7.63679479]
[1770079131257,2.54064227,2342.5,2341.6,2.52420678]
[1770079131453,2.54064227,2342.5,2340.8,12.87454608]
[1770079131454,2.504,2342.5,2340.9,2.52420678]
[1770079131655,2.74983463,2342.4,2340.9,2.52420678]
[1770079131858,0.21366,2342.4,2340.9,2.52420678]
[1770079132055,3.64401457,2342.3,2340.9,2.52912416]
[1770079132254,3.64401457,2342.2,2340.9,2.52912416]
[1770079132459,0.21821309,2342.4,2340.9,2.52912416]
[1770079132660,3.63963098,2342.3,2340.9,2.52912416]
[1770079132861,3.63963098,2342.2,2340.9,2.52912416]
[1770079133064,0.21821309,2342.4,2340.9,2.52912416]
[1770079133256,3.64018079,2342.3,2340.9,2.52912416]
[1770079133463,3.64018079,2342.2,2340.9,2.52912416]
[1770079133658,0.21821309,2342.4,2340.9,2.52912416]
[1770079133860,3.63670228,2342.3,2340.9,2.52912416]
[1770079134062,3.63670228,2342.2,2341.1,2.52420678]
[1770079134257,0.21821309,2342.4,2341.1,2.52420678]
[1770079134563,3.63408299,2342.3,2341.1,2.52420678]
[1770079134765,3.63409208,2342.2,2341.1,2.52420678]
[1770079134964,0.21821309,2342.4,2341.1,2.52420678]
[1770079135165,3.63406185,2342.3,2341.1,2.52420678]
[1770079135465,3.63406185,2342.2,2341.1,2.52420678]
[1770079135664,0.21821309,2342.4,2341.1,2.52420678]
[1770079135961,3.63171108,2342.3,2341.3,2.52420678]
[1770079136265,0.21821309,2342.4,2341.3,2.52420678]
[1770079136465,3.62992492,2342.3,2341.3,2.52420678]
[1770079136661,0.21821309,2342.4,2341.3,2.52420678]
[1770079136866,3.6299272,2342.3,2341.3,2.52420678]
[1770079137166,0.21821309,2342.4,2341.3,2.52420678]
[1770079139067,0.21821309,2342.4,2341.4,2.52420678]
[1770079141168,3.62563363,2342.3,2341.4,2.52420678]
[1770079141461,0.21821309,2342.4,2341.4,2.52420678]
[1770079141666,3.63158716,2342.3,2341.5,2.52420678]
[1770079141867,0.21821309,2342.4,2341.5,2.52420678]
[1770079142068,0.21821309,2342.4,2341.7,4.27264986]
[1770079142268,0.21821309,2342.4,2340.9,0.00491738]
[1770079142470,0.21821309,2342.4,2341.3,2.52420678]
[1770079143769,0.21821309,2342.4,2341.4,2.52420678]
[1770079143971,0.21821309,2342.4,2341.5,2.52420678]
[1770079144166,0.00455309,2342.4,2341.5,2.52420678]
[1770079144369,0.00455309,2342.4,2342.0,2.52420678]
[1770079144972,0.00455309,2342.4,2342.1,6.79685664]
[1770079145271,0.00455309,2342.4,2342.1,2.52420678]
[1770079145470,0.00455309,2342.4,2342.2,4.27264986]
[1770079145770,0.21361,2342.9,2342.3,6.79685664]
[1770079145971,3.63257608,2342.8,2342.3,2.52420678]
[1770079146166,0.21361,2342.9,2342.3,2.52420678]
[1770079146367,3.63298297,2342.8,2342.3,2.52420678]
[1770079146567,0.21361,2342.9,2342.3,2.52420678]
[1770079146769,3.6329892,2342.8,2342.3,2.52420678]
[1770079146970,0.21805881,2342.9,2342.3,2.52420678]
[1770079147271,3.63298859,2342.8,2342.3,2.52420678]
[1770079147470,0.21805881,2342.9,2342.3,2.52420678]
[1770079147672,3.63349813,2342.8,2342.3,2.52420678]
[1770079147872,0.00444881,2342.9,2342.4,2.52420678]
[1770079148174,6.568,2343.5,2342.7,2.52420678]
[1770079148372,3.63420354,2343.4,2342.7,2.52420678]
[1770079148573,6.568,2343.5,2342.8,2.52420678]
[1770079148768,3.63492086,2343.4,2342.8,2.52420678]
[1770079148970,0.004882,2343.4,2342.8,2.52729413]
[1770079149173,0.004882,2343.4,2342.9,2.52420678]
[1770079149569,0.004882,2343.4,2342.9,6.79685664]
[1770079149770,0.004882,2343.4,2343.0,2.52420678]
[1770079151375,5.52617463,2343.8,2343.3,6.79685664]
[1770079151674,3.64882107,2343.7,2343.3,2.52420678]
[1770079151877,2.99,2343.8,2343.3,2.52420678]
[1770079152071,3.64886981,2343.7,2343.3,2.52420678]
[1770079152272,2.99,2343.8,2343.3,2.52420678]
[1770079152472,3.64944607,2343.7,2342.9,2.52420678]
[1770079152776,2.99377401,2343.8,2343.0,6.79685664]
[1770079152976,3.64951893,2343.7,2343.1,2.52420678]
[1770079153276,2.99377401,2343.8,2343.1,6.79685664]
[1770079153476,3.65008498,2343.7,2343.1,6.79685664]
[1770079153673,2.99377401,2343.8,2343.1,6.79685664]
[1770079153870,3.65008498,2343.7,2343.1,6.79685664]
[1770079154070,2.99377401,2343.8,2343.2,4.27264986]
[1770079154276,3.65008906,2343.7,2343.2,6.79685664]
[1770079154476,2.99377401,2343.8,2343.2,6.79685664]
[1770079154675,3.66526668,2343.7,2343.2,6.79685664]
[1770079154875,2.99377401,2343.8,2343.3,4.27264986]
[1770079155078,6.20144048,2343.7,2343.2,6.79685664]
[1770079155377,3.66526585,2343.6,2343.2,6.79685664]
[1770079155671,2.53617463,2343.7,2343.4,2.51692595]
[1770079155878,2.99377401,2343.8,2343.4,2.51692595]
[1770079156073,0.00377401,2343.8,2343.5,6.59158858]
[1770079156377,5.07272315,2344.2,2343.5,6.59158858]
[1770079156378,2.53617463,2344.2,2343.5,2.31893872]
[1770079156576,2.53617463,2344.2,2343.6,4.27264986]
[1770079156777,2.53617463,2344.2,2343.6,2.31893872]
[1770079156976,2.53617463,2344.2,2343.6,6.59158858]
[1770079157173,6.622,2344.3,2343.9,6.59158858]
[1770079157379,0.00364108,2344.2,2344.0,2.31893872]
[1770079157777,0.00364108,2344.2,2343.8,1.27901382]
[1770079158082,0.00364108,2344.2,2343.6,2.30505482]
[1770079158276,0.00364108,2344.2,2343.7,1.27901382]
[1770079158476,0.00364108,2344.2,2343.3,1.27901382]
[1770079158980,0.00364108,2344.2,2343.5,1.27901382]
[1770079159169,0.00364108,2344.2,2343.3,1.27901382]
[1770079159874,0.00364108,2344.2,2343.4,2.52420678]
[1770079160070,0.00364108,2344.2,2343.6,2.52365592]
[1770079160581,0.00364108,2344.2,2343.8,2.52365592]
[1770079160978,0.00364108,2344.2,2343.9,2.52365592]
[1770079161278,0.00364108,2344.2,2343.6,2.52365592]
[1770079163177,0.00364108,2344.2,2343.6,1.27901382]
[1770079163480,0.00364108,2344.2,2343.9,2.51522416]
[1770079163872,0.00364108,2344.2,2344.0,2.51522416]
[1770079164078,0.00364108,2344.2,2343.9,1.27901382]
[1770079164678,0.00364108,2344.2,2343.9,3.79423798]
[1770079165383,0.00364108,2344.2,2344.0,1.27901382]
[1770079166580,0.00364108,2344.2,2344.0,3.79383735]
[1770079166980,2.53617463,2344.7,2344.3,2.51482353]
[1770079167182,0.17628483,2344.8,2343.2,0.21357]
[1770079167375,0.17628483,2344.8,2341.6,6.38257515]
[1770079167376,0.17602331,2343.8,2341.6,6.38257515]
[1770079167580,0.21358,2343.2,2341.5,0.21374]
[1770079167782,4.07203435,2343.1,2341.1,4.88307501]
[1770079167981,0.21359,2343.1,2341.1,5.09684501]
[1770079168184,0.21359,2343.1,2341.4,0.21374]
[1770079168580,0.21796356,2343.1,2341.4,0.21858282]
[1770079169083,0.21796356,2343.1,2341.5,2.43564426]
[1770079169285,0.21361,2342.9,2341.5,2.43564426]
[1770079176285,3.86752608,2342.8,2341.5,2.43564426]
[1770079176491,0.21361,2342.9,2341.5,2.43564426]
[1770079177290,0.00437356,2343.1,2341.5,2.43564426]
[1770079177489,3.86841658,2343.0,2341.5,5.42464426]
[1770079177791,3.86841658,2342.9,2341.6,2.41245135]
[1770079178088,0.00437356,2343.1,2341.6,2.41245135]
[1770079178288,3.86841271,2343.0,2341.6,2.41245135]
[1770079178484,3.86841271,2342.9,2341.6,2.41245135]
[1770079178692,0.00437356,2343.1,2341.6,2.41245135]
[1770079178897,0.00437356,2343.1,2342.1,2.41245135]
[1770079179896,2.52657632,2343.5,2342.1,2.41245135]
[1770079180191,3.86651431,2343.4,2342.1,2.41245135]
[1770079180391,3.86651431,2343.3,2342.1,2.41245135]